[Event "*** Titled Tuesday Blitz"]
[Site "Chess.com"]
[Date "2018.06.05"]
[Round "3"]
[White "RDMGUY01"]
[Black "JaimeSantosLatasa"]
[Result "0-1"]
[WhiteElo "2390"]
[BlackElo "2639"]
[TimeControl "180+2"]
[EndTime "13:40:52 PDT"]
[Termination "JaimeSantosLatasa won by resignation"]

1. d4 {[%clk 0:03:01.9]} 1... Nf6 {[%clk 0:03:00]} 2. c4 {[%clk 0:03:03.2]} 2...
e6 {[%clk 0:03:00.8]} 3. Nc3 {[%clk 0:03:04.6]} 3... Bb4 {[%clk 0:03:00.8]} 4.
Qc2 {[%clk 0:03:05.8]} 4... O-O {[%clk 0:03:00.3]} 5. a3 {[%clk 0:03:07]} 5...
Bxc3+ {[%clk 0:03:00.6]} 6. Qxc3 {[%clk 0:03:08.9]} 6... d5 {[%clk 0:03:01.4]}
7. Bg5 {[%clk 0:03:08.8]} 7... dxc4 {[%clk 0:02:59.2]} 8. Qxc4 {[%clk 0:03:10]}
8... b6 {[%clk 0:03:00.1]} 9. Nf3 {[%clk 0:03:10.8]} 9... Ba6 {[%clk 0:03:00.1]}
10. Qa4 {[%clk 0:03:11.6]} 10... h6 {[%clk 0:03:00.8]} 11. Bh4 {[%clk
0:03:08.7]} 11... c5 {[%clk 0:03:01.5]} 12. e3 {[%clk 0:03:00.4]} 12... Bxf1
{[%clk 0:02:58.4]} 13. Rxf1 {[%clk 0:03:02.3]} 13... Nbd7 {[%clk 0:02:58.2]} 14.
Rd1 {[%clk 0:02:54.4]} 14... Qc7 {[%clk 0:02:58.4]} 15. Bg3 {[%clk 0:02:51]}
15... Qb7 {[%clk 0:02:57.6]} 16. Ke2 {[%clk 0:02:32.2]} 16... Ne4 {[%clk
0:02:48.6]} 17. Rfe1 {[%clk 0:02:26.3]} 17... Rfc8 {[%clk 0:02:40.2]} 18. Kf1
{[%clk 0:02:23.7]} 18... b5 {[%clk 0:02:37.7]} 19. Qa5 {[%clk 0:02:13.7]} 19...
a6 {[%clk 0:02:36.4]} 20. Kg1 {[%clk 0:01:41.2]} 20... Nb6 {[%clk 0:02:30.4]}
21. dxc5 {[%clk 0:01:21.6]} 21... Nc4 {[%clk 0:02:16.8]} 22. Qb4 {[%clk
0:01:19.9]} 22... Nxc5 {[%clk 0:02:17.7]} 23. Nd4 {[%clk 0:01:01]} 23... e5
{[%clk 0:01:54.3]} 24. Nb3 {[%clk 0:00:44.1]} 24... Na4 {[%clk 0:01:49.3]} 25.
Na5 {[%clk 0:00:33.3]} 25... Nxa5 {[%clk 0:01:48.4]} 26. Qxa5 {[%clk 0:00:35.2]}
26... Nxb2 {[%clk 0:01:49.4]} 27. Rb1 {[%clk 0:00:23]} 27... Nc4 {[%clk
0:01:49.7]} 28. Qb4 {[%clk 0:00:23.6]} 28... Qd7 {[%clk 0:01:44.2]} 29. h3
{[%clk 0:00:19.2]} 29... f6 {[%clk 0:01:41.9]} 30. Red1 {[%clk 0:00:19.8]} 30...
Qe8 {[%clk 0:01:39.2]} 31. a4 {[%clk 0:00:19.1]} 31... bxa4 {[%clk 0:01:34.3]}
32. Rdc1 {[%clk 0:00:17]} 32... Rab8 {[%clk 0:01:30.3]} 33. Qe1 {[%clk
0:00:09.8]} 33... Rb3 {[%clk 0:01:27.5]} 34. e4 {[%clk 0:00:09.6]} 34... Qb5
{[%clk 0:01:25.9]} 35. f3 {[%clk 0:00:08.7]} 35... a3 {[%clk 0:01:23.3]} 36. Ra1
{[%clk 0:00:07.7]} 36... Rb2 {[%clk 0:01:18.4]} 37. Bf2 {[%clk 0:00:08.6]} 37...
Rd8 {[%clk 0:01:14.2]} 38. Qc3 {[%clk 0:00:09]} 38... Kh7 {[%clk 0:01:04.3]} 39.
Qxc4 {[%clk 0:00:07.2]} 39... Rd1+ {[%clk 0:01:04.5]} 40. Kh2 {[%clk 0:00:07.4]}
40... Qxc4 {[%clk 0:01:05.1]} 41. Rxc4 {[%clk 0:00:07.6]} 41... Rxa1 {[%clk
0:01:05.8]} 0-1

[Event "*** Titled Tuesday Blitz"]
[Site "Chess.com"]
[Date "2018.06.05"]
[Round "3"]
[White "julinha97"]
[Black "Albertu"]
[Result "0-1"]
[WhiteElo "2204"]
[BlackElo "2323"]
[TimeControl "180+2"]
[EndTime "13:40:56 PDT"]
[Termination "Albertu won by resignation"]

1. e4 {[%clk 0:03:01.9]} 1... c5 {[%clk 0:03:00.5]} 2. Nf3 {[%clk 0:03:00.8]}
2... d6 {[%clk 0:03:01.7]} 3. d4 {[%clk 0:03:02.2]} 3... cxd4 {[%clk 0:03:03.1]}
4. Nxd4 {[%clk 0:03:04.1]} 4... Nf6 {[%clk 0:03:04.2]} 5. Nc3 {[%clk 0:03:02.5]}
5... a6 {[%clk 0:03:05]} 6. Be3 {[%clk 0:03:02]} 6... Nbd7 {[%clk 0:03:04.3]} 7.
f3 {[%clk 0:02:59.2]} 7... e6 {[%clk 0:03:01.6]} 8. g4 {[%clk 0:02:58.1]} 8...
h6 {[%clk 0:03:01.2]} 9. Qd2 {[%clk 0:02:58.1]} 9... b5 {[%clk 0:03:01.8]} 10.
O-O-O {[%clk 0:02:59]} 10... b4 {[%clk 0:03:02.9]} 11. Nce2 {[%clk 0:02:59.5]}
11... Qc7 {[%clk 0:03:00.3]} 12. h4 {[%clk 0:02:54.3]} 12... d5 {[%clk
0:02:59.4]} 13. exd5 {[%clk 0:02:20.3]} 13... Nxd5 {[%clk 0:03:01.3]} 14. Bf2
{[%clk 0:02:13.6]} 14... Bb7 {[%clk 0:02:59.9]} 15. Kb1 {[%clk 0:02:07.9]} 15...
Rc8 {[%clk 0:02:59.9]} 16. Bg3 {[%clk 0:01:54.5]} 16... Qb6 {[%clk 0:02:55.5]}
17. Nf4 {[%clk 0:01:46.6]} 17... Nc3+ {[%clk 0:02:51.2]} 18. Ka1 {[%clk
0:01:38.3]} 18... Nxd1 {[%clk 0:02:49.9]} 19. Qxd1 {[%clk 0:01:40.2]} 19... e5
{[%clk 0:02:40.1]} 20. Nf5 {[%clk 0:01:18.9]} 20... exf4 {[%clk 0:02:37.6]} 21.
Bxf4 {[%clk 0:01:20.8]} 21... g6 {[%clk 0:02:29.6]} 22. Nd6+ {[%clk 0:01:09.7]}
22... Bxd6 {[%clk 0:02:15.6]} 23. Bxd6 {[%clk 0:01:11.6]} 23... Rc6 {[%clk
0:01:47.9]} 24. Bf4 {[%clk 0:01:02.6]} 24... Nc5 {[%clk 0:01:25.8]} 25. Bc4
{[%clk 0:00:59.8]} 25... O-O {[%clk 0:01:24.3]} 26. Bxh6 {[%clk 0:00:52.7]}
26... Rd8 {[%clk 0:01:23.4]} 27. Qe2 {[%clk 0:00:54]} 27... Ne6 {[%clk
0:01:18.8]} 28. h5 {[%clk 0:00:50]} 28... Qd4 {[%clk 0:00:57.8]} 29. Bd3 {[%clk
0:00:47.9]} 29... g5 {[%clk 0:00:46.6]} 30. Rd1 {[%clk 0:00:40.8]} 30... Qf6
{[%clk 0:00:40.6]} 31. Be4 {[%clk 0:00:34.2]} 31... Rxd1+ {[%clk 0:00:28.5]} 32.
Qxd1 {[%clk 0:00:36.1]} 32... Qxh6 {[%clk 0:00:28.4]} 33. Bxc6 {[%clk
0:00:36.7]} 33... Bxc6 {[%clk 0:00:30.3]} 34. Qd3 {[%clk 0:00:35.3]} 34... Qf6
{[%clk 0:00:29]} 35. Qxa6 {[%clk 0:00:33.6]} 35... Bxf3 {[%clk 0:00:29.5]} 36.
a3 {[%clk 0:00:31.5]} 36... bxa3 {[%clk 0:00:29.2]} 37. Qxa3 {[%clk 0:00:33.4]}
37... Bxg4 {[%clk 0:00:30.2]} 38. Qa8+ {[%clk 0:00:33.7]} 38... Kg7 {[%clk
0:00:30.1]} 0-1

[Event "*** Titled Tuesday Blitz"]
[Site "Chess.com"]
[Date "2018.06.05"]
[Round "3"]
[White "Sameer555"]
[Black "Shivagami"]
[Result "1-0"]
[WhiteElo "2173"]
[BlackElo "2055"]
[TimeControl "180+2"]
[EndTime "13:40:56 PDT"]
[Termination "Sameer555 won by resignation"]

1. e4 {[%clk 0:03:01.9]} 1... e5 {[%clk 0:02:59]} 2. Nf3 {[%clk 0:03:02.3]} 2...
Nc6 {[%clk 0:03:00]} 3. d4 {[%clk 0:03:03.7]} 3... exd4 {[%clk 0:02:59.9]} 4.
Nxd4 {[%clk 0:03:05.6]} 4... Nf6 {[%clk 0:03:00.8]} 5. Nc3 {[%clk 0:03:05.9]}
5... Bb4 {[%clk 0:03:00.6]} 6. Nxc6 {[%clk 0:03:02.8]} 6... bxc6 {[%clk
0:03:01.4]} 7. Bd3 {[%clk 0:03:02.9]} 7... d5 {[%clk 0:02:54.9]} 8. exd5 {[%clk
0:03:04.8]} 8... cxd5 {[%clk 0:02:56.3]} 9. O-O {[%clk 0:03:05.6]} 9... O-O
{[%clk 0:02:57.8]} 10. Bg5 {[%clk 0:03:05.6]} 10... c6 {[%clk 0:02:52.5]} 11.
Qf3 {[%clk 0:03:05.6]} 11... h6 {[%clk 0:02:53.6]} 12. Bf4 {[%clk 0:03:03.3]}
12... Re8 {[%clk 0:02:47.5]} 13. h3 {[%clk 0:03:03.4]} 13... Qe7 {[%clk
0:02:46.9]} 14. Rad1 {[%clk 0:03:01.8]} 14... Bd7 {[%clk 0:02:31.9]} 15. Ne2
{[%clk 0:03:02.7]} 15... Bd6 {[%clk 0:02:27.8]} 16. Nd4 {[%clk 0:03:02.1]} 16...
Bxf4 {[%clk 0:02:27.4]} 17. Qxf4 {[%clk 0:03:04]} 17... Rab8 {[%clk 0:02:16.7]}
18. b3 {[%clk 0:03:03.5]} 18... a5 {[%clk 0:02:14]} 19. Rfe1 {[%clk 0:03:01]}
19... Qxe1+ {[%clk 0:02:09.7]} 20. Rxe1 {[%clk 0:03:02.9]} 20... Rxe1+ {[%clk
0:02:10.1]} 21. Kh2 {[%clk 0:03:04.1]} 21... Rbe8 {[%clk 0:02:08.3]} 22. Qc7
{[%clk 0:03:05]} 22... Ra1 {[%clk 0:01:48.6]} 23. Qxa5 {[%clk 0:02:57.1]} 23...
Ree1 {[%clk 0:01:48.2]} 24. Qd8+ {[%clk 0:02:48.9]} 24... Re8 {[%clk 0:01:35.3]}
25. Qa5 {[%clk 0:02:43.5]} 25... Ree1 {[%clk 0:01:34.9]} 26. a4 {[%clk
0:02:32.9]} 26... g6 {[%clk 0:00:51.2]} 27. Qc7 {[%clk 0:02:20.1]} 27... Nh5
{[%clk 0:00:43.6]} 28. g4 {[%clk 0:01:47.6]} 28... Rh1+ {[%clk 0:00:40.8]} 29.
Kg2 {[%clk 0:01:49]} 29... Rag1+ {[%clk 0:00:34.3]} 30. Kf3 {[%clk 0:01:50.4]}
30... Rxh3+ {[%clk 0:00:34.6]} 31. Ke2 {[%clk 0:01:49.3]} 31... Bxg4+ {[%clk
0:00:35]} 32. Kd2 {[%clk 0:01:50.2]} 32... Rd1+ {[%clk 0:00:29]} 33. Kc3 {[%clk
0:01:50]} 33... Nf6 {[%clk 0:00:26.9]} 34. a5 {[%clk 0:01:32.4]} 34... c5 {[%clk
0:00:21.5]} 35. a6 {[%clk 0:01:23.7]} 35... cxd4+ {[%clk 0:00:18.6]} 36. Kb4
{[%clk 0:01:21.8]} 36... Ra1 {[%clk 0:00:18.7]} 37. Qb8+ {[%clk 0:01:19.8]}
37... Kg7 {[%clk 0:00:18.8]} 38. a7 {[%clk 0:01:21.2]} 38... Nd7 {[%clk
0:00:19]} 39. a8=Q {[%clk 0:01:19.4]} 39... Nxb8 {[%clk 0:00:18.7]} 40. Qxa1
{[%clk 0:01:15.8]} 40... Nc6+ {[%clk 0:00:18.9]} 41. Kc5 {[%clk 0:01:16.6]}
41... Ne7 {[%clk 0:00:17.8]} 42. Qxd4+ {[%clk 0:01:14.4]} 42... f6 {[%clk
0:00:17.9]} 43. Qxg4 {[%clk 0:01:14.3]} 1-0

[Event "*** Titled Tuesday Blitz"]
[Site "Chess.com"]
[Date "2018.06.05"]
[Round "3"]
[White "tango_argentino"]
[Black "asms9699"]
[Result "1-0"]
[WhiteElo "2463"]
[BlackElo "2445"]
[TimeControl "180+2"]
[EndTime "13:41:00 PDT"]
[Termination "tango_argentino won by resignation"]

1. e4 {[%clk 0:03:01.9]} 1... e6 {[%clk 0:03:01]} 2. d4 {[%clk 0:03:02.7]} 2...
d5 {[%clk 0:03:02.1]} 3. Nc3 {[%clk 0:03:03.5]} 3... Nf6 {[%clk 0:03:03.3]} 4.
e5 {[%clk 0:03:04.2]} 4... Nfd7 {[%clk 0:03:04.3]} 5. f4 {[%clk 0:03:04.7]} 5...
c5 {[%clk 0:03:05.4]} 6. Nf3 {[%clk 0:03:04.2]} 6... Nc6 {[%clk 0:03:06.9]} 7.
Be3 {[%clk 0:03:04.7]} 7... a6 {[%clk 0:03:08.4]} 8. g3 {[%clk 0:03:03.8]} 8...
b5 {[%clk 0:03:08.7]} 9. Bg2 {[%clk 0:03:03.9]} 9... Qb6 {[%clk 0:03:09.4]} 10.
Ne2 {[%clk 0:02:56.4]} 10... c4 {[%clk 0:03:01.5]} 11. O-O {[%clk 0:02:56]}
11... g6 {[%clk 0:02:56.2]} 12. g4 {[%clk 0:02:33.3]} 12... h5 {[%clk 0:02:56]}
13. h3 {[%clk 0:02:34.6]} 13... hxg4 {[%clk 0:02:55.6]} 14. hxg4 {[%clk
0:02:36.5]} 14... Be7 {[%clk 0:02:51.5]} 15. Qd2 {[%clk 0:02:36.6]} 15... Bb7
{[%clk 0:02:29]} 16. f5 {[%clk 0:02:34.2]} 16... gxf5 {[%clk 0:02:27.3]} 17.
gxf5 {[%clk 0:02:35]} 17... exf5 {[%clk 0:01:44.3]} 18. Ng3 {[%clk 0:02:35.3]}
18... O-O-O {[%clk 0:01:21]} 19. Nxf5 {[%clk 0:02:35.2]} 19... Rdg8 {[%clk
0:01:18.6]} 20. Kf2 {[%clk 0:02:27.3]} 20... Kb8 {[%clk 0:00:54.3]} 21. Rh1
{[%clk 0:02:23.5]} 21... Rxh1 {[%clk 0:00:53.7]} 22. Rxh1 {[%clk 0:02:24.3]}
22... Nf8 {[%clk 0:00:31.1]} 23. Rh6 {[%clk 0:02:02.5]} 23... Qd8 {[%clk
0:00:20.3]} 24. Bh3 {[%clk 0:01:52.5]} 24... Ne6 {[%clk 0:00:18.4]} 25. Rh7
{[%clk 0:01:45.2]} 25... Rh8 {[%clk 0:00:14.8]} 26. Rxh8 {[%clk 0:01:25.1]}
26... Qxh8 {[%clk 0:00:16.7]} 27. Bg2 {[%clk 0:01:26.6]} 27... Bc8 {[%clk
0:00:14.9]} 28. b3 {[%clk 0:01:16.5]} 28... Qh7 {[%clk 0:00:09.6]} 29. Nxe7
{[%clk 0:01:13]} 29... Nxe7 {[%clk 0:00:11.5]} 30. bxc4 {[%clk 0:01:13.7]} 30...
dxc4 {[%clk 0:00:12]} 31. d5 {[%clk 0:01:11.3]} 31... Nf8 {[%clk 0:00:08.7]} 32.
Qd4 {[%clk 0:01:05.1]} 32... Bb7 {[%clk 0:00:09.6]} 33. Qa7+ {[%clk 0:00:58.9]}
33... Kc8 {[%clk 0:00:10.4]} 34. Qc5+ {[%clk 0:01:00.3]} 34... Kd8 {[%clk
0:00:10]} 35. Bg5 {[%clk 0:00:58.4]} 35... Ng6 {[%clk 0:00:06.1]} 36. d6 {[%clk
0:00:56.5]} 36... Bxf3 {[%clk 0:00:06.7]} 37. Qc7+ {[%clk 0:00:54.3]} 37... Ke8
{[%clk 0:00:07.5]} 38. d7+ {[%clk 0:00:53.9]} 38... Kf8 {[%clk 0:00:08.3]} 39.
d8=Q+ {[%clk 0:00:54.4]} 39... Kg7 {[%clk 0:00:09.7]} 40. Bf6+ {[%clk
0:00:54.7]} 40... Kh6 {[%clk 0:00:11.1]} 41. Bxf3 {[%clk 0:00:52.1]} 41... Nf5
{[%clk 0:00:09.7]} 42. Qd2+ {[%clk 0:00:52.2]} 1-0

[Event "*** Titled Tuesday Blitz"]
[Site "Chess.com"]
[Date "2018.06.05"]
[Round "3"]
[White "VNeimer"]
[Black "Durarbayli"]
[Result "0-1"]
[WhiteElo "2444"]
[BlackElo "2661"]
[TimeControl "180+2"]
[EndTime "13:41:00 PDT"]
[Termination "Durarbayli won by resignation"]

1. d4 {[%clk 0:03:01.9]} 1... Nf6 {[%clk 0:02:58.7]} 2. Nf3 {[%clk 0:03:01.6]}
2... c5 {[%clk 0:02:58.4]} 3. d5 {[%clk 0:03:00]} 3... e6 {[%clk 0:02:58.3]} 4.
Nc3 {[%clk 0:02:54.6]} 4... exd5 {[%clk 0:02:56.3]} 5. Nxd5 {[%clk 0:02:53.9]}
5... Nxd5 {[%clk 0:02:56.3]} 6. Qxd5 {[%clk 0:02:55.8]} 6... Nc6 {[%clk
0:02:57.4]} 7. e4 {[%clk 0:02:50.6]} 7... d6 {[%clk 0:02:56.8]} 8. Ng5 {[%clk
0:02:48.4]} 8... Qf6 {[%clk 0:02:52.9]} 9. Bc4 {[%clk 0:02:45]} 9... Ne5 {[%clk
0:02:33.6]} 10. Bb5+ {[%clk 0:02:29.2]} 10... Ke7 {[%clk 0:02:05.1]} 11. f4
{[%clk 0:02:15.6]} 11... Nd7 {[%clk 0:01:37.5]} 12. Bxd7 {[%clk 0:01:25.1]}
12... Bxd7 {[%clk 0:01:35.1]} 13. Qxb7 {[%clk 0:01:26.2]} 13... Rd8 {[%clk
0:01:26.3]} 14. O-O {[%clk 0:01:25.8]} 14... Qd4+ {[%clk 0:01:09.9]} 15. Kh1
{[%clk 0:01:24.8]} 15... f6 {[%clk 0:01:05.3]} 16. Nf3 {[%clk 0:01:20.2]} 16...
Qa4 {[%clk 0:00:35.8]} 17. e5 {[%clk 0:01:09.2]} 17... Kf7 {[%clk 0:00:23.3]}
18. Re1 {[%clk 0:01:02.7]} 18... Re8 {[%clk 0:00:13.8]} 19. Be3 {[%clk
0:00:56.8]} 19... Qc6 {[%clk 0:00:13.7]} 20. Qxa7 {[%clk 0:00:57]} 20... Be7
{[%clk 0:00:14.2]} 21. Rad1 {[%clk 0:00:52.8]} 21... Ra8 {[%clk 0:00:14.2]} 22.
Qxa8 {[%clk 0:00:48.3]} 22... Rxa8 {[%clk 0:00:14.5]} 23. exd6 {[%clk
0:00:50.2]} 23... Bf8 {[%clk 0:00:15.8]} 24. a3 {[%clk 0:00:50.5]} 24... Rb8
{[%clk 0:00:16.5]} 25. b3 {[%clk 0:00:51.3]} 25... Re8 {[%clk 0:00:15.2]} 26. a4
{[%clk 0:00:47.1]} 26... Bxd6 {[%clk 0:00:15.6]} 27. Bc1 {[%clk 0:00:47.3]}
27... Bf8 {[%clk 0:00:16.3]} 28. Nd2 {[%clk 0:00:41.9]} 28... Bg4 {[%clk
0:00:13.7]} 29. Rxe8 {[%clk 0:00:41]} 29... Qxe8 {[%clk 0:00:15.6]} 30. Rg1
{[%clk 0:00:41.2]} 30... Qe2 {[%clk 0:00:16.9]} 31. a5 {[%clk 0:00:42.2]} 31...
Bf5 {[%clk 0:00:17.8]} 32. Nc4 {[%clk 0:00:36.8]} 32... Bxc2 {[%clk 0:00:18]}
33. a6 {[%clk 0:00:38]} 33... Be4 {[%clk 0:00:19.4]} 34. a7 {[%clk 0:00:38.2]}
34... Qa2 {[%clk 0:00:20.1]} 35. Ba3 {[%clk 0:00:38.5]} 35... h5 {[%clk
0:00:20.7]} 0-1

[Event "*** Titled Tuesday Blitz"]
[Site "Chess.com"]
[Date "2018.06.05"]
[Round "3"]
[White "VeraNebolsina"]
[Black "UNDERTAKER2001"]
[Result "1-0"]
[WhiteElo "2353"]
[BlackElo "2353"]
[TimeControl "180+2"]
[EndTime "13:41:04 PDT"]
[Termination "VeraNebolsina won by checkmate"]

1. e4 {[%clk 0:03:01.9]} 1... e6 {[%clk 0:03:01]} 2. d4 {[%clk 0:03:01.9]} 2...
d5 {[%clk 0:03:02.9]} 3. exd5 {[%clk 0:03:02.6]} 3... exd5 {[%clk 0:03:03.9]} 4.
Nf3 {[%clk 0:03:01]} 4... Nf6 {[%clk 0:03:04.7]} 5. c4 {[%clk 0:03:01.7]} 5...
Bg4 {[%clk 0:03:04.6]} 6. Be2 {[%clk 0:02:49.7]} 6... dxc4 {[%clk 0:03:04.9]} 7.
O-O {[%clk 0:02:47]} 7... Nbd7 {[%clk 0:03:05.9]} 8. Bxc4 {[%clk 0:02:43.9]}
8... Be7 {[%clk 0:03:05.4]} 9. Qb3 {[%clk 0:02:36.7]} 9... Bxf3 {[%clk
0:02:53.2]} 10. Qxf3 {[%clk 0:02:35.6]} 10... c6 {[%clk 0:02:43.6]} 11. Nc3
{[%clk 0:02:10.6]} 11... O-O {[%clk 0:02:42.1]} 12. Bb3 {[%clk 0:02:04]} 12...
Nb6 {[%clk 0:02:41.9]} 13. Re1 {[%clk 0:02:03.1]} 13... h6 {[%clk 0:02:30.9]}
14. Bf4 {[%clk 0:01:56.7]} 14... Bd6 {[%clk 0:02:01.8]} 15. Be5 {[%clk
0:01:55.6]} 15... Bxe5 {[%clk 0:02:00]} 16. dxe5 {[%clk 0:01:56.2]} 16... Nfd5
{[%clk 0:02:00]} 17. Rad1 {[%clk 0:01:55.2]} 17... Qd7 {[%clk 0:01:26.9]} 18.
Nxd5 {[%clk 0:01:53.8]} 18... cxd5 {[%clk 0:01:27.7]} 19. Bxd5 {[%clk
0:01:53.6]} 19... Nxd5 {[%clk 0:01:28.6]} 20. Rxd5 {[%clk 0:01:54.5]} 20... Qa4
{[%clk 0:01:28.6]} 21. a3 {[%clk 0:01:35.7]} 21... Rac8 {[%clk 0:01:27.5]} 22.
h3 {[%clk 0:01:30]} 22... Rc2 {[%clk 0:01:27.5]} 23. b4 {[%clk 0:01:16.4]} 23...
b6 {[%clk 0:01:24.1]} 24. Red1 {[%clk 0:01:15.8]} 24... Qc6 {[%clk 0:01:17.9]}
25. Qf5 {[%clk 0:01:11.8]} 25... Rc3 {[%clk 0:01:10.6]} 26. Rd6 {[%clk
0:01:09.9]} 26... Qc8 {[%clk 0:00:57.5]} 27. Rd7 {[%clk 0:01:10.5]} 27... Rxa3
{[%clk 0:00:57.5]} 28. e6 {[%clk 0:01:07.7]} 28... fxe6 {[%clk 0:00:47.8]} 29.
Qg6 {[%clk 0:01:04.4]} 29... Qc3 {[%clk 0:00:39.8]} 30. R1d4 {[%clk 0:01:03.3]}
30... Qe1+ {[%clk 0:00:27]} 31. Kh2 {[%clk 0:01:04.2]} 31... Qe5+ {[%clk
0:00:27.8]} 32. f4 {[%clk 0:00:52.7]} 32... Qf6 {[%clk 0:00:28.8]} 33. Qg4
{[%clk 0:00:47.4]} 33... e5 {[%clk 0:00:23.8]} 34. Re4 {[%clk 0:00:39.2]} 34...
exf4 {[%clk 0:00:13.9]} 35. Ree7 {[%clk 0:00:38.5]} 35... Rg3 {[%clk 0:00:02.2]}
36. Rxg7+ {[%clk 0:00:38.5]} 36... Kh8 {[%clk 0:00:03.5]} 37. Rh7# {[%clk
0:00:39]} 1-0

[Event "*** Titled Tuesday Blitz"]
[Site "Chess.com"]
[Date "2018.06.05"]
[Round "3"]
[White "nurmiTV"]
[Black "maciek_92"]
[Result "0-1"]
[WhiteElo "2493"]
[BlackElo "2626"]
[TimeControl "180+2"]
[EndTime "13:41:08 PDT"]
[Termination "maciek_92 won by resignation"]

1. c4 {[%clk 0:03:01.9]} 1... Nf6 {[%clk 0:02:59.4]} 2. Nc3 {[%clk 0:03:00.1]}
2... e6 {[%clk 0:02:47.3]} 3. e4 {[%clk 0:03:00.2]} 3... c5 {[%clk 0:02:42.8]}
4. Nf3 {[%clk 0:02:59.6]} 4... Nc6 {[%clk 0:02:43.4]} 5. Be2 {[%clk 0:03:00.2]}
5... Be7 {[%clk 0:02:41.8]} 6. O-O {[%clk 0:03:00.9]} 6... O-O {[%clk
0:02:42.2]} 7. d4 {[%clk 0:02:58.2]} 7... cxd4 {[%clk 0:02:44.1]} 8. Nxd4 {[%clk
0:02:59.8]} 8... a6 {[%clk 0:02:40.9]} 9. Be3 {[%clk 0:02:57]} 9... d6 {[%clk
0:02:34.8]} 10. Rc1 {[%clk 0:02:53.9]} 10... Bd7 {[%clk 0:02:36.1]} 11. f4
{[%clk 0:02:41.8]} 11... Nxd4 {[%clk 0:02:35.1]} 12. Bxd4 {[%clk 0:02:40.2]}
12... Bc6 {[%clk 0:02:37]} 13. Bf3 {[%clk 0:02:41.7]} 13... Qa5 {[%clk
0:02:32.2]} 14. Qd2 {[%clk 0:02:32.7]} 14... Rfd8 {[%clk 0:02:27.1]} 15. Rfd1
{[%clk 0:02:26.8]} 15... Bf8 {[%clk 0:02:00.3]} 16. Bxf6 {[%clk 0:02:04.9]}
16... gxf6 {[%clk 0:02:02]} 17. Nd5 {[%clk 0:02:06.4]} 17... Qc5+ {[%clk
0:01:50.4]} 18. Ne3 {[%clk 0:02:07.4]} 18... a5 {[%clk 0:01:40.3]} 19. Kh1
{[%clk 0:01:58.7]} 19... Bg7 {[%clk 0:01:27.7]} 20. b3 {[%clk 0:01:54.1]} 20...
Qb4 {[%clk 0:01:15.3]} 21. Qf2 {[%clk 0:01:48.9]} 21... a4 {[%clk 0:01:13.8]}
22. Nc2 {[%clk 0:01:46.9]} 22... Qc5 {[%clk 0:01:07.6]} 23. Qxc5 {[%clk
0:01:24.9]} 23... dxc5 {[%clk 0:01:09.5]} 24. b4 {[%clk 0:01:26.2]} 24... b6
{[%clk 0:00:43.1]} 25. Kg1 {[%clk 0:01:21.1]} 25... Bh6 {[%clk 0:00:41.3]} 26.
g3 {[%clk 0:01:16.7]} 26... f5 {[%clk 0:00:37.2]} 27. Re1 {[%clk 0:01:06.4]}
27... e5 {[%clk 0:00:25.2]} 28. Kf2 {[%clk 0:00:39.2]} 28... exf4 {[%clk
0:00:25.2]} 29. gxf4 {[%clk 0:00:38.4]} 29... Bxf4 {[%clk 0:00:26.2]} 30. Rcd1
{[%clk 0:00:34.8]} 30... Rxd1 {[%clk 0:00:27.2]} 31. Rxd1 {[%clk 0:00:36.7]}
31... fxe4 {[%clk 0:00:28.5]} 32. Bg4 {[%clk 0:00:33]} 32... Kf8 {[%clk
0:00:27.2]} 33. h4 {[%clk 0:00:28.8]} 33... Ke7 {[%clk 0:00:26.4]} 34. Bf5
{[%clk 0:00:29.5]} 34... Kf6 {[%clk 0:00:24.2]} 35. Bd7 {[%clk 0:00:24.9]} 35...
Rd8 {[%clk 0:00:20.3]} 36. Bg4 {[%clk 0:00:23.7]} 36... Rxd1 {[%clk 0:00:21.2]}
37. Bxd1 {[%clk 0:00:25.6]} 37... Ke5 {[%clk 0:00:22.3]} 38. Bh5 {[%clk
0:00:19.7]} 38... f5 {[%clk 0:00:22.6]} 39. b5 {[%clk 0:00:19.7]} 39... Bd7
{[%clk 0:00:23.5]} 40. Bf7 {[%clk 0:00:20.5]} 40... Be6 {[%clk 0:00:22.5]} 41.
Bxe6 {[%clk 0:00:22.1]} 0-1

[Event "*** Titled Tuesday Blitz"]
[Site "Chess.com"]
[Date "2018.06.05"]
[Round "3"]
[White "kleinebeer98"]
[Black "GGX0X0"]
[Result "1-0"]
[WhiteElo "2471"]
[BlackElo "2328"]
[TimeControl "180+2"]
[EndTime "13:41:09 PDT"]
[Termination "kleinebeer98 won by checkmate"]

1. e4 {[%clk 0:03:01]} 1... c6 {[%clk 0:03:00]} 2. d4 {[%clk 0:03:02]} 2... d5
{[%clk 0:03:01]} 3. f3 {[%clk 0:03:03.6]} 3... e6 {[%clk 0:03:00.2]} 4. Nc3
{[%clk 0:03:03.5]} 4... Bb4 {[%clk 0:02:59.6]} 5. Bd3 {[%clk 0:03:04.2]} 5...
dxe4 {[%clk 0:02:49]} 6. fxe4 {[%clk 0:03:06.1]} 6... Qxd4 {[%clk 0:02:42]} 7.
Nf3 {[%clk 0:03:07.5]} 7... Qd8 {[%clk 0:02:41.7]} 8. O-O {[%clk 0:03:08]} 8...
Nd7 {[%clk 0:02:27.1]} 9. Kh1 {[%clk 0:03:04.6]} 9... h6 {[%clk 0:02:19.8]} 10.
e5 {[%clk 0:02:47.9]} 10... Ne7 {[%clk 0:02:16]} 11. Qe1 {[%clk 0:02:41]} 11...
Nd5 {[%clk 0:02:11.3]} 12. Qg3 {[%clk 0:02:38.7]} 12... g5 {[%clk 0:01:42.2]}
13. Ne4 {[%clk 0:02:27.9]} 13... Be7 {[%clk 0:01:35.9]} 14. a3 {[%clk
0:02:25.2]} 14... Nc5 {[%clk 0:01:35.7]} 15. Nxc5 {[%clk 0:02:15.8]} 15... Bxc5
{[%clk 0:01:35]} 16. b4 {[%clk 0:02:12.2]} 16... Be7 {[%clk 0:01:33]} 17. Bd2
{[%clk 0:02:02.3]} 17... Qb6 {[%clk 0:01:22.6]} 18. Rae1 {[%clk 0:01:54.1]}
18... Bd7 {[%clk 0:01:08.6]} 19. c4 {[%clk 0:01:54.5]} 19... Nf4 {[%clk
0:01:03.4]} 20. Bxf4 {[%clk 0:01:52.9]} 20... gxf4 {[%clk 0:01:04.3]} 21. Qxf4
{[%clk 0:01:54.8]} 21... Rf8 {[%clk 0:00:58.7]} 22. c5 {[%clk 0:01:50.9]} 22...
Qc7 {[%clk 0:00:59.1]} 23. Nd2 {[%clk 0:01:41.4]} 23... Bg5 {[%clk 0:00:49.6]}
24. Qf2 {[%clk 0:01:40.1]} 24... Bxd2 {[%clk 0:00:48.5]} 25. Qxd2 {[%clk
0:01:42]} 25... O-O-O {[%clk 0:00:49]} 26. Bc4 {[%clk 0:01:29.6]} 26... Kb8
{[%clk 0:00:32.6]} 27. Qxh6 {[%clk 0:01:00.9]} 27... Bc8 {[%clk 0:00:14.9]} 28.
Rd1 {[%clk 0:01:00.9]} 28... Rh8 {[%clk 0:00:14.9]} 29. Qf4 {[%clk 0:01:00.4]}
29... Rdf8 {[%clk 0:00:15.5]} 30. Qf6 {[%clk 0:00:54.8]} 30... Rh5 {[%clk
0:00:16]} 31. Rd6 {[%clk 0:00:54.7]} 31... Rfh8 {[%clk 0:00:15.3]} 32. h3 {[%clk
0:00:54.5]} 32... R8h7 {[%clk 0:00:15.7]} 33. Bd3 {[%clk 0:00:50.6]} 33... R7h6
{[%clk 0:00:14.7]} 34. Qxf7 {[%clk 0:00:51]} 34... Rxe5 {[%clk 0:00:14.7]} 35.
Qxc7+ {[%clk 0:00:37.4]} 35... Kxc7 {[%clk 0:00:16.6]} 36. Rf7+ {[%clk
0:00:38.9]} 36... Kb8 {[%clk 0:00:17.1]} 37. Rf8 {[%clk 0:00:34.2]} 37... Rd5
{[%clk 0:00:17.9]} 38. Bc4 {[%clk 0:00:34.8]} 38... Rg5 {[%clk 0:00:12.2]} 39.
Rdd8 {[%clk 0:00:34.4]} 39... a6 {[%clk 0:00:12]} 40. Rxc8+ {[%clk 0:00:35.3]}
40... Ka7 {[%clk 0:00:13.4]} 41. Ra8# {[%clk 0:00:37.2]} 1-0